bitfinex/quotes_BTCUSD_20250602
["timestamp","ask_amount","ask_price","bid_price","bid_amount"]
[1748897459642,0.5079753,104800.0,104790.0,0.83077778]
[1748897460031,0.51751664,104800.0,104790.0,0.83077778]
[1748897460238,0.5079753,104800.0,104790.0,0.83077778]
[1748897461068,0.51751664,104800.0,104790.0,0.83077778]
[1748897461277,0.51751664,104800.0,104790.0,0.83077742]
[1748897461486,0.52705816,104800.0,104790.0,0.53861742]
[1748897461701,0.51751664,104800.0,104790.0,0.92041742]
[1748897462137,0.52705807,104800.0,104790.0,0.92041742]
[1748897462556,0.51751664,104800.0,104790.0,0.92041742]
[1748897462788,0.70835633,104800.0,104790.0,0.27688959]
[1748897462995,1.23689129,104800.0,104790.0,0.03103529]
[1748897463220,1.73466715,104800.0,104790.0,0.03103529]
[1748897463444,1.75256103,104800.0,104790.0,0.32315529]
[1748897463664,1.23678577,104800.0,104790.0,0.30712381]
[1748897464144,1.23678577,104800.0,104790.0,0.30812381]
[1748897464354,1.23578577,104800.0,104790.0,0.30212381]
[1748897464782,1.23678577,104800.0,104790.0,0.30212381]
[1748897465221,0.26991668,104800.0,104790.0,0.30312381]
[1748897465455,0.7488616,104800.0,104790.0,0.30212381]
[1748897465665,0.7558616,104800.0,104790.0,0.30312381]
[1748897465873,0.77375527,104800.0,104790.0,0.30312381]
[1748897466085,1.25270019,104800.0,104790.0,0.30312381]
[1748897466317,0.7558616,104800.0,104790.0,0.30312381]
[1748897466525,1.11375527,104800.0,104790.0,0.01100381]
[1748897466744,1.0958616,104800.0,104790.0,0.01100381]
[1748897466951,1.61059399,104800.0,104790.0,0.01100381]
[1748897467191,1.65870382,104800.0,104790.0,0.01100381]
[1748897467621,1.65871131,104800.0,104790.0,0.01100381]
[1748897467823,1.67660602,104800.0,104790.0,0.01100381]
[1748897468038,1.65871131,104800.0,104790.0,0.01100381]
[1748897468253,1.76911727,104800.0,104790.0,0.01100381]
[1748897468477,1.65871131,104800.0,104790.0,0.01100381]
[1748897468694,6.83692922,104800.0,104790.0,0.01100381]
[1748897469107,6.80316349,104800.0,104790.0,0.01100381]
[1748897469327,6.82252454,104800.0,104790.0,0.01100381]
[1748897469741,6.80462895,104800.0,104790.0,0.01100381]
[1748897469951,6.82244486,104800.0,104790.0,0.01100381]
[1748897470364,6.89714017,104800.0,104790.0,0.01100381]
[1748897470577,6.91493817,104800.0,104790.0,0.01100381]
[1748897470784,6.89714017,104800.0,104790.0,0.01100381]
[1748897470989,6.82242695,104800.0,104790.0,0.01100381]
[1748897471409,6.82242696,104800.0,104790.0,0.01100381]
[1748897471911,6.80462895,104800.0,104790.0,0.01100381]
[1748897472126,6.80462895,104800.0,104790.0,0.21140442]
[1748897472127,6.02109637,104800.0,104790.0,0.21140442]
[1748897472340,1.14891902,104800.0,104790.0,0.22094695]
[1748897472560,1.10703727,104800.0,104790.0,0.21140442]
[1748897472777,0.90665514,104800.0,104790.0,0.23048911]
[1748897472986,1.12612004,104800.0,104790.0,0.26198911]
[1748897473196,1.09238608,104800.0,104790.0,0.26198911]
[1748897473812,1.09238608,104800.0,104790.0,0.24638911]
[1748897474038,1.09238681,104800.0,104790.0,0.22094686]
[1748897474253,1.09238681,104800.0,104790.0,0.2304892]
[1748897474482,1.09238681,104800.0,104790.0,0.24003145]
[1748897476458,1.09238681,104800.0,104790.0,0.2304892]
[1748897477556,0.89200514,104800.0,104790.0,0.24003145]
[1748897477757,1.09238681,104800.0,104790.0,0.24003145]
[1748897477966,1.09238681,104800.0,104790.0,0.53219145]
[1748897478554,1.09238681,104800.0,104790.0,0.5226492]
[1748897479094,1.09238681,104800.0,104790.0,0.53219145]
[1748897479318,1.11024133,104800.0,104790.0,0.53219145]
[1748897479572,1.09238681,104800.0,104790.0,0.53219145]
[1748897479937,1.11024133,104800.0,104790.0,0.53219145]
[1748897480141,1.09238681,104800.0,104790.0,0.53219145]
[1748897480889,0.90154712,104800.0,104790.0,0.53219145]
[1748897481013,0.88246325,104800.0,104790.0,0.53219145]
[1748897481217,0.88246325,104800.0,104790.0,0.54839145]
[1748897481646,0.89200514,104800.0,104790.0,0.56489145]
[1748897483725,0.88246325,104800.0,104790.0,0.56489145]
[1748897485243,1.07330294,104800.0,104790.0,0.56489145]
[1748897486183,0.88246325,104800.0,104790.0,0.56489145]
[1748897486500,1.08284492,104800.0,104790.0,0.5388092]
[1748897486715,1.08284492,104800.0,104790.0,0.54835145]
[1748897487338,0.89200523,104800.0,104790.0,0.54835145]
[1748897488275,0.88246325,104800.0,104790.0,0.54835145]
[1748897488707,1.08284492,104800.0,104790.0,0.51972442]
[1748897488914,1.12850249,104800.0,104790.0,0.51306704]
[1748897489126,1.12850249,104800.0,104790.0,0.52260948]
[1748897489570,1.08284492,104800.0,104790.0,0.52260957]
[1748897489787,1.07330358,104800.0,104790.0,0.51306704]
[1748897491575,1.06376206,104800.0,104790.0,0.5035246]
[1748897491792,1.05422026,104800.0,104790.0,0.30312381]
[1748897492007,1.67497007,104800.0,104790.0,0.01100381]
[1748897492456,1.60031378,104800.0,104790.0,0.01100381]
[1748897492678,6.92457885,104800.0,104790.0,0.01100381]
[1748897492900,7.17608667,104800.0,104790.0,0.01100381]
[1748897493118,7.19394371,104800.0,104790.0,0.01100381]
[1748897493335,7.16654469,104800.0,104780.0,0.00014477]
[1748897493556,1.56507779,104790.0,104780.0,0.00014477]
[1748897494419,1.56507779,104790.0,104780.0,0.00114477]
[1748897494895,1.61149046,104790.0,104780.0,0.00114477]
[1748897495110,1.59363748,104790.0,104780.0,0.00114477]
[1748897495319,1.61149045,104790.0,104780.0,0.00314477]
[1748897495546,1.59463748,104790.0,104780.0,0.00314477]
[1748897495789,1.59363748,104790.0,104780.0,0.00114477]
[1748897496020,1.59963748,104790.0,104780.0,0.00014477]
[1748897496230,1.60563748,104790.0,104780.0,0.00014477]
[1748897496672,1.6981487,104790.0,104780.0,0.00014477]
[1748897496959,1.71600167,104790.0,104780.0,0.00014477]
[1748897497445,1.71600168,104790.0,104780.0,0.00014477]
[1748897497654,1.60563748,104790.0,104780.0,0.00014477]
[1748897498324,1.62349045,104790.0,104780.0,0.00014477]
[1748897498550,1.60563748,104790.0,104780.0,0.00014477]
[1748897499215,1.62349046,104790.0,104780.0,0.00014477]
[1748897499435,1.60563748,104790.0,104780.0,0.00014477]
[1748897499655,1.71600168,104790.0,104780.0,0.00014477]
[1748897499879,1.715998,104790.0,104780.0,0.00014477]
[1748897500099,1.6981487,104790.0,104780.0,0.00014477]
[1748897500320,1.715998,104790.0,104780.0,0.00014477]
[1748897500546,1.6981487,104790.0,104780.0,0.00014477]
[1748897500797,1.715998,104790.0,104780.0,0.00014477]
[1748897501021,1.6981487,104790.0,104780.0,0.00014477]
[1748897501493,1.715998,104790.0,104780.0,0.00014477]
[1748897501697,1.6981487,104790.0,104780.0,0.00014477]
[1748897501916,1.715998,104790.0,104780.0,0.00014477]
[1748897502139,1.6981487,104790.0,104780.0,0.00014477]
[1748897502621,1.715998,104790.0,104780.0,0.00014477]
[1748897502840,1.6981487,104790.0,104780.0,0.00014477]
[1748897503245,1.71598606,104790.0,104780.0,0.00014477]
[1748897503447,1.6981487,104790.0,104780.0,0.00014477]
[1748897504899,1.60563748,104790.0,104780.0,0.00014477]
[1748897505745,1.62353414,104790.0,104780.0,0.00014477]
[1748897505963,6.72165386,104790.0,104780.0,0.00014477]
[1748897507186,6.73955083,104790.0,104780.0,0.00014477]
[1748897507408,7.28117422,104790.0,104780.0,0.00014477]
[1748897507627,7.40742399,104790.0,104780.0,0.00014477]
[1748897508590,7.42932558,104790.0,104780.0,0.00014477]
[1748897508822,0.54041974,104780.0,104770.0,0.0054104]
[1748897509043,7.40421789,104780.0,104770.0,0.00555521]
[1748897509245,6.50609414,104780.0,104770.0,0.00555521]
[1748897509663,6.53983967,104780.0,104770.0,0.00555521]
[1748897510147,6.54583967,104780.0,104770.0,0.00555521]
[1748897510407,6.56373836,104780.0,104770.0,0.00555521]
[1748897510766,6.54583967,104780.0,104770.0,0.00555521]
[1748897511027,6.52023967,104780.0,104770.0,0.00555521]
[1748897511249,6.53813836,104780.0,104770.0,0.00555521]
[1748897511456,6.52023967,104780.0,104770.0,0.00555521]
[1748897512042,6.60829399,104780.0,104770.0,0.00555521]
[1748897512262,6.62619268,104780.0,104770.0,0.00555521]
[1748897512415,6.60829399,104780.0,104770.0,0.00555521]
[1748897512617,6.62619268,104780.0,104770.0,0.00555521]
[1748897512821,6.60829399,104780.0,104770.0,0.00555521]
[1748897513000,6.57454846,104780.0,104770.0,0.00555521]
[1748897514481,6.59244716,104780.0,104770.0,0.00555521]
[1748897514720,6.64055218,104780.0,104770.0,0.00555521]
[1748897515554,6.57454846,104780.0,104770.0,0.00555521]
[1748897516311,6.48649414,104780.0,104770.0,0.00555521]
[1748897518260,6.50439283,104780.0,104770.0,0.00555521]
[1748897518459,6.48649414,104780.0,104770.0,0.00555521]
[1748897518667,6.50439283,104780.0,104770.0,0.00555521]
[1748897518868,6.48649414,104780.0,104770.0,0.00555521]
[1748897519084,6.50439283,104780.0,104770.0,0.00555521]
[1748897519289,6.48649414,104780.0,104770.0,0.02135521]
[1748897519578,6.59690405,104780.0,104770.0,0.02135521]
[1748897519805,0.55000317,104760.0,104750.0,0.032]
[1748897520054,0.55000317,104760.0,104740.0,0.19083281]
[1748897520055,0.0286386,104750.0,104740.0,0.24192742]
[1748897520287,0.54364013,104750.0,104740.0,0.26150477]
[1748897520499,0.71666957,104750.0,104740.0,0.26150477]
[1748897520715,0.7262161,104750.0,104740.0,0.26150495]
[1748897521806,0.71767011,104750.0,104740.0,0.24241088]
[1748897522019,0.71867011,104750.0,104740.0,0.25195796]
[1748897522720,0.72841568,104750.0,104740.0,0.25195796]
[1748897522946,0.72841568,104750.0,104740.0,0.26150486]
[1748897523164,0.72841568,104750.0,104740.0,0.27105167]
[1748897523165,0.51819235,104750.0,104740.0,0.27105167]
[1748897523419,0.5277387,104750.0,104740.0,0.27105167]
[1748897523632,0.54564073,104750.0,104740.0,0.27105167]
[1748897523842,0.5277387,104750.0,104740.0,0.27105167]
[1748897525752,0.53728514,104750.0,104740.0,0.27105167]
[1748897525973,0.01909608,104730.0,104720.0,0.25253098]
[1748897526238,0.01909608,104730.0,104720.0,0.26207988]
[1748897526239,1.00374783,104730.0,104720.0,0.26207988]
[1748897526441,1.02284391,104730.0,104720.0,0.27162869]
[1748897526842,1.24116668,104730.0,104720.0,0.26207988]
[1748897527058,1.23280984,104730.0,104720.0,0.26207988]
[1748897527284,0.75561494,104730.0,104720.0,0.26207988]
[1748897527515,1.23480984,104730.0,104720.0,0.26207988]
[1748897527925,1.23480984,104730.0,104720.0,0.27162869]
[1748897528135,1.22526148,104730.0,104720.0,0.28117741]
[1748897528340,1.23480984,104730.0,104720.0,0.29072604]
[1748897528568,0.75561494,104730.0,104720.0,0.28117741]
[1748897528833,0.58401813,104730.0,104720.0,0.28117741]
[1748897529047,0.76662853,104730.0,104720.0,0.29072604]
[1748897529258,0.55656475,104730.0,104720.0,0.29072604]
[1748897529466,0.50855043,104730.0,104720.0,0.29072604]
[1748897529682,0.50855043,104730.0,104720.0,0.38658034]
[1748897529895,0.51809797,104730.0,104720.0,0.38658034]
[1748897530539,0.52774308,104730.0,104720.0,0.38658034]
[1748897530738,0.4991001,104730.0,104720.0,0.67878034]
[1748897530980,0.50864764,104730.0,104720.0,0.67878034]
[1748897531908,0.4991001,104730.0,104720.0,0.67878034]
[1748897532127,0.002,104730.0,104720.0,0.67878034]
[1748897542967,0.002,104730.0,104720.0,0.82878034]
[1748897546435,0.002,104730.0,104720.0,0.84332119]
[1748897547568,0.002,104730.0,104720.0,0.82332119]
[1748897548458,0.002,104730.0,104720.0,0.83291763]
[1748897555389,0.002,104730.0,104720.0,0.51658034]
[1748897555709,0.002,104730.0,104720.0,0.80878034]
[1748897557170,0.002,104730.0,104720.0,0.51658034]
[1748897557372,0.002,104730.0,104720.0,0.60622034]
[1748897557584,0.002,104730.0,104720.0,0.89838034]
[1748897559245,0.03037011,104730.0,104720.0,0.89838034]
[1748897567154,0.002,104730.0,104720.0,0.89838034]
[1748897579815,0.002,104730.0,104720.0,0.91292119]
[1748897581491,0.002,104730.0,104720.0,1.41008557]
[1748897582328,0.002,104730.0,104720.0,1.43923463]
[1748897583831,0.002,104730.0,104720.0,0.94207025]
[1748897584258,0.002,104730.0,104720.0,0.51658034]
[1748897584259,0.49916438,104730.0,104720.0,0.51658034]
[1748897584476,0.49916438,104730.0,104720.0,0.77670034]
[1748897584705,0.52996438,104730.0,104720.0,0.77670034]
[1748897585381,0.53951201,104730.0,104720.0,0.77670034]
[1748897585820,0.54905973,104730.0,104720.0,0.77670034]
[1748897586037,0.56696215,104730.0,104720.0,0.62670034]
[1748897586360,0.54905973,104730.0,104720.0,0.62670034]
[1748897586566,0.56696215,104730.0,104720.0,0.71634034]
[1748897586769,0.53951201,104730.0,104720.0,0.71634034]
[1748897587190,0.53971006,104730.0,104720.0,0.71634034]
[1748897587592,0.49936243,104730.0,104720.0,0.71634034]
[1748897587795,0.50891006,104730.0,104720.0,0.71634034]
[1748897588832,0.50890997,104730.0,104720.0,0.71634034]
[1748897592068,0.49936243,104730.0,104720.0,0.71634034]
[1748897592283,0.50890997,104730.0,104720.0,0.71634034]
[1748897592759,0.49936243,104730.0,104720.0,0.71634034]
[1748897595562,0.49936243,104730.0,104720.0,0.33458034]
[1748897595777,0.49936243,104730.0,104720.0,0.71634034]
[1748897596954,1.39796829,104730.0,104720.0,0.21007988]
[1748897597181,1.40751656,104730.0,104720.0,0.2196286]
[1748897597395,1.40751647,104730.0,104720.0,0.22917723]
[1748897597618,0.91970231,104730.0,104720.0,0.22917723]
[1748897597835,0.35990494,104730.0,104720.0,0.22917723]
[1748897598045,0.35154772,104730.0,104720.0,0.22917723]
[1748897598261,0.36945215,104730.0,104720.0,0.22917723]
[1748897598480,0.002,104730.0,104720.0,0.35683153]
[1748897599088,0.49936243,104730.0,104720.0,0.35683153]
[1748897601700,0.49936243,104730.0,104720.0,0.40683153]
[1748897601915,0.50890997,104730.0,104720.0,0.40683153]
[1748897602166,0.49936243,104730.0,104720.0,0.40683153]
[1748897602419,0.49936243,104730.0,104720.0,0.34103153]
[1748897602638,0.49936243,104730.0,104720.0,0.32503153]
[1748897602868,0.50890997,104730.0,104720.0,0.32503153]
[1748897603294,0.50890997,104730.0,104720.0,0.34113153]
[1748897604384,0.50890997,104730.0,104720.0,0.32503153]
[1748897604597,0.5280055,104730.0,104720.0,0.61731153]
[1748897604814,0.5280055,104730.0,104720.0,0.70691153]
[1748897605035,0.53755358,104730.0,104720.0,0.70691153]
[1748897605279,0.53755358,104730.0,104720.0,0.70739153]
[1748897605489,0.53755349,104730.0,104720.0,0.70739153]
[1748897605944,0.72852073,104730.0,104720.0,0.39577418]
[1748897606158,1.25628443,104730.0,104720.0,0.29037098]
[1748897606379,0.758922,104730.0,104720.0,0.6114976]
[1748897606623,0.05904617,104720.0,104710.0,0.50246631]
[1748897606843,0.56595769,104720.0,104710.0,0.51201585]
[1748897607073,0.5564086,104720.0,104710.0,0.52156567]
[1748897607758,0.56595769,104720.0,104710.0,0.52156567]
[1748897607971,0.56695769,104720.0,104710.0,0.52156567]
[1748897608175,0.56795769,104720.0,104710.0,0.52156567]
[1748897609028,0.5584086,104720.0,104710.0,0.52156567]
[1748897609244,0.5434086,104720.0,104710.0,0.52156567]
[1748897609670,0.56131436,104720.0,104710.0,0.52156567]
[1748897609879,0.5184596,104720.0,104710.0,0.52156567]
[1748897610100,0.5280085,104720.0,104710.0,0.52156567]
[1748897610312,0.54591426,104720.0,104710.0,0.52156567]
[1748897610518,0.5280085,104720.0,104710.0,0.52156567]
[1748897611554,0.57463654,104720.0,104710.0,0.52156567]
[1748897611761,0.55673078,104720.0,104710.0,0.52156567]
[1748897611965,0.5280085,104720.0,104710.0,0.52156567]
[1748897612382,0.54591426,104720.0,104710.0,0.52156567]
[1748897612789,0.5280085,104720.0,104710.0,0.52156567]
[1748897613217,0.54591426,104720.0,104710.0,0.52156567]
[1748897613425,0.54591426,104720.0,104710.0,0.52224567]
[1748897613643,0.5280085,104720.0,104710.0,0.52224567]
[1748897614207,0.5184596,104720.0,104710.0,0.52224567]
[1748897614638,0.53636536,104720.0,104710.0,0.52224567]
[1748897615050,0.5184596,104720.0,104710.0,0.52224567]
[1748897615285,0.5184596,104720.0,104710.0,0.22908567]
[1748897615485,0.5184596,104720.0,104710.0,0.52216567]
[1748897616253,0.53636535,104720.0,104710.0,0.52216567]
[1748897616456,0.54534092,104720.0,104710.0,0.52216567]
[1748897616713,0.002,104720.0,104710.0,0.65101997]
[1748897617351,0.002,104720.0,104710.0,0.74089997]
[1748897617660,0.002,104720.0,104710.0,0.35793997]
[1748897617935,0.002,104720.0,104710.0,0.74089997]
[1748897618152,0.002,104720.0,104710.0,0.35793997]
[1748897618366,0.002,104720.0,104710.0,0.74093997]
[1748897618577,0.002,104720.0,104710.0,0.74101997]
[1748897621358,0.002,104720.0,104710.0,0.89101997]
[1748897632524,0.002,104720.0,104710.0,0.59777997]
[1748897632738,0.002,104720.0,104710.0,0.89049997]
[1748897634211,0.002,104720.0,104710.0,0.59777997]
[1748897634680,0.002,104720.0,104710.0,0.89037997]
[1748897647395,0.49931433,104720.0,104710.0,0.89037997]
[1748897648843,0.002,104720.0,104710.0,0.89037997]
[1748897649413,0.002,104720.0,104710.0,0.89045997]
[1748897659768,0.002,104720.0,104710.0,0.89009997]
[1748897662965,0.49931433,104720.0,104710.0,0.50793997]
[1748897663190,0.49931433,104720.0,104710.0,0.89033997]
[1748897664311,0.49931433,104720.0,104710.0,0.49143997]
[1748897664526,0.49931433,104720.0,104710.0,0.87379997]
[1748897665190,0.002,104720.0,104710.0,0.89009997]
[1748897676637,0.002,104720.0,104710.0,0.59781997]
[1748897676865,0.002,104720.0,104710.0,0.89001997]
[1748897684994,0.002,104720.0,104710.0,0.50773997]
[1748897685215,0.002,104720.0,104710.0,2.31579326]
[1748897685661,0.002,104720.0,104710.0,2.7461191]
[1748897685891,0.002,104720.0,104710.0,2.7561191]
[1748897686105,0.001,104720.0,104710.0,2.7561191]
[1748897686321,0.002,104720.0,104710.0,2.7561191]
[1748897687254,0.002,104720.0,104710.0,2.25847039]
[1748897687255,0.004,104720.0,104710.0,2.25847039]
[1748897687891,0.004,104720.0,104710.0,2.18150661]
[1748897688961,0.004,104720.0,104710.0,2.48030661]
[1748897689166,0.004,104720.0,104710.0,2.44998077]
[1748897691045,0.004,104720.0,104710.0,2.48030661]
[1748897691252,0.004,104720.0,104710.0,2.44998077]
[1748897692285,0.00118727,104720.0,104710.0,2.44998077]
[1748897692497,0.00037454,104720.0,104710.0,2.44998077]
[1748897692931,0.00037454,104720.0,104710.0,2.46836477]
[1748897694811,0.00980388,104740.0,104730.0,1.08789117]
[1748897695029,0.00980388,104740.0,104730.0,1.97806547]
[1748897695901,0.01080388,104740.0,104730.0,2.00594876]
[1748897696311,0.01180388,104740.0,104730.0,2.01094876]
[1748897697171,0.01180388,104740.0,104730.0,2.16094876]
[1748897697798,0.01180388,104740.0,104730.0,1.66396881]
[1748897699272,0.01180388,104740.0,104730.0,2.16094876]
[1748897699924,0.01180388,104740.0,104730.0,2.1703498]
[1748897701219,0.01180388,104740.0,104730.0,1.67336985]
[1748897701879,0.01180388,104740.0,104730.0,2.1703498]
[1748897702105,0.01180388,104740.0,104730.0,2.66732975]
[1748897702321,0.01526843,104750.0,104740.0,1.10181105]
[1748897702537,0.01526843,104750.0,104740.0,1.19766535]
[1748897703867,0.01726843,104750.0,104740.0,1.60166535]
[1748897704706,0.01826843,104750.0,104740.0,1.60966535]
[1748897710714,0.01826843,104750.0,104740.0,1.63832235]
[1748897711188,0.01826843,104750.0,104740.0,1.1413424]
[1748897711406,0.01826843,104750.0,104740.0,1.63832235]
[1748897712709,0.01826843,104750.0,104740.0,1.93712235]
[1748897713560,0.01826843,104750.0,104740.0,1.94712235]
[1748897713797,0.83697995,104800.0,104740.0,1.94712235]
[1748897713798,0.0154,104800.0,104740.0,2.47442814]
[1748897714047,0.02525298,104810.0,104740.0,2.47442814]
[1748897714048,0.0309,104810.0,104800.0,0.21946454]
[1748897714268,0.0155,104810.0,104800.0,0.69695884]
[1748897714484,0.0309,104830.0,104820.0,0.20988241]
[1748897715131,0.53741856,104830.0,104820.0,0.20988241]
[1748897715364,0.52787995,104830.0,104820.0,0.21002728]
[1748897715785,0.53741847,104830.0,104820.0,0.21002728]
[1748897715995,0.54636187,104830.0,104820.0,0.21002728]
[1748897716212,0.54636198,104830.0,104820.0,0.21002728]
[1748897716656,0.53741847,104830.0,104820.0,0.21002728]
[1748897716873,0.54641847,104830.0,104820.0,0.21102728]
[1748897717297,0.55241847,104830.0,104820.0,0.21202728]
[1748897717527,0.56188761,104830.0,104820.0,0.21202728]
[1748897717696,0.5618877,104830.0,104820.0,0.21202728]
[1748897718515,0.5618877,104830.0,104820.0,0.50410728]
[1748897718698,0.57142613,104830.0,104820.0,0.50410728]
[1748897719694,0.5618877,104830.0,104820.0,0.50410728]
[1748897720318,0.55234909,104830.0,104820.0,0.50410728]
[1748897720557,0.5714264,104830.0,104820.0,0.50410728]
[1748897720755,0.57142631,104830.0,104820.0,0.50410728]
[1748897720936,0.58096529,104830.0,104820.0,0.50410728]
[1748897721350,0.5809652,104830.0,104820.0,0.50410728]
[1748897721754,0.56188761,104830.0,104820.0,0.50410728]
[1748897721972,0.57142631,104830.0,104820.0,0.50410728]
[1748897722815,0.56188761,104830.0,104820.0,0.50410728]
[1748897723030,0.57142631,104830.0,104820.0,0.50410728]
[1748897723839,0.06490766,104830.0,104820.0,0.50410728]
[1748897724047,0.57142631,104830.0,104820.0,0.50410728]
[1748897724281,0.5809652,104830.0,104820.0,0.50410728]
[1748897724696,0.57142631,104830.0,104820.0,0.50410728]
[1748897724902,0.57142622,104830.0,104820.0,0.50410728]
[1748897725110,0.58096492,104830.0,104820.0,0.50410728]
[1748897727033,0.57142622,104830.0,104820.0,0.50410728]
[1748897727233,0.58096492,104830.0,104820.0,0.50410728]
[1748897727647,0.57142622,104830.0,104820.0,0.50410728]
[1748897728079,0.58096492,104830.0,104820.0,0.50410728]
[1748897728285,0.56188761,104830.0,104820.0,0.50410728]
[1748897728493,0.57142631,104830.0,104820.0,0.50410728]
[1748897728702,0.56188761,104830.0,104820.0,0.50410728]
[1748897728839,0.57142631,104830.0,104820.0,0.50410728]
[1748897729660,0.58096529,104830.0,104820.0,0.50410728]
[1748897730238,0.5714264,104830.0,104820.0,0.50410728]
[1748897731276,0.5714264,104830.0,104820.0,0.50394728]
[1748897731484,0.58096511,104830.0,104820.0,0.50394728]
[1748897732236,0.58096501,104830.0,104820.0,0.50394728]
[1748897732452,0.07444627,104830.0,104820.0,0.50394728]
[1748897732668,0.59050399,104830.0,104820.0,0.50394728]
[1748897732881,0.5905039,104830.0,104820.0,0.50394728]
[1748897733313,0.58096501,104830.0,104820.0,0.50394728]
[1748897734394,0.5905039,104830.0,104820.0,0.50394728]
[1748897735220,0.60838988,104830.0,104820.0,0.50394728]
[1748897735399,0.60004288,104830.0,104820.0,0.50394728]
[1748897735804,0.61733287,104830.0,104820.0,0.50394728]
[1748897736006,0.59050399,104830.0,104820.0,0.50394728]
[1748897736213,0.59944698,104830.0,104820.0,0.50394728]
[1748897736622,0.59050399,104830.0,104820.0,0.50394728]
[1748897736831,0.58096501,104830.0,104820.0,0.50394728]
[1748897736981,0.58990772,104830.0,104820.0,0.50394728]
[1748897737183,0.59050399,104830.0,104820.0,0.50394728]
[1748897737393,1.64171845,104830.0,104820.0,0.00214487]
[1748897737593,0.57294326,104820.0,104810.0,0.19082108]
[1748897737801,0.25204405,104810.0,104800.0,0.21960959]
[1748897738027,0.75856443,104810.0,104800.0,0.52107093]
[1748897738227,0.78599437,104810.0,104800.0,0.52107093]
[1748897738450,0.73948348,104810.0,104800.0,0.20052645]
[1748897738602,0.73948348,104810.0,104800.0,0.50198816]
[1748897738803,0.74842443,104810.0,104800.0,0.50198816]
[1748897739130,0.55820189,104810.0,104800.0,0.52107093]
[1748897739326,0.58562356,104810.0,104800.0,0.52507093]
[1748897739675,0.3563,104820.0,104810.0,0.2194436]
[1748897739881,0.36524056,104820.0,104810.0,0.2194436]
[1748897740085,0.36583952,104820.0,104810.0,0.2194436]
[1748897740304,0.87235899,104820.0,104810.0,0.5114436]
[1748897740708,0.89023811,104820.0,104810.0,0.5114436]
[1748897740910,0.8902381,104820.0,104810.0,0.5114436]
[1748897741121,0.87235899,104820.0,104810.0,0.5114436]
[1748897741779,0.89829847,104820.0,104810.0,0.5134436]
[1748897742024,0.89769782,104820.0,104810.0,0.5134436]
[1748897742239,0.87305899,104820.0,104810.0,0.5134436]
[1748897742845,0.86351938,104820.0,104810.0,0.5134436]
[1748897743055,0.8730589,104820.0,104810.0,0.5134436]
[1748897743257,0.85397995,104820.0,104810.0,0.5134436]
[1748897743480,0.87245659,104820.0,104810.0,0.5134436]
[1748897743709,0.86351947,104820.0,104810.0,0.5134436]
[1748897743946,0.88139371,104820.0,104810.0,0.5134436]
[1748897744150,0.86351947,104820.0,104810.0,0.5134436]
[1748897744584,0.87245646,104820.0,104810.0,0.5134436]
[1748897744801,0.86351929,104820.0,104810.0,0.5134436]
[1748897745004,0.88139267,104820.0,104810.0,0.5134436]
[1748897745211,0.86351929,104820.0,104810.0,0.5134436]
[1748897745445,0.89032743,104820.0,104810.0,0.5134436]
[1748897745667,0.87245505,104820.0,104810.0,0.5134436]
[1748897745924,0.85397995,104820.0,104810.0,0.5134436]
[1748897746368,0.90415917,104820.0,104810.0,0.5134436]
[1748897746805,0.92202608,104820.0,104810.0,0.5134436]
[1748897747022,0.90415908,104820.0,104810.0,0.5134036]
[1748897747249,0.92202471,104820.0,104810.0,0.5134036]
[1748897747474,0.90415908,104820.0,104810.0,0.5134036]
[1748897747691,0.92202468,104820.0,104810.0,0.5134036]
[1748897747900,0.90415908,104820.0,104810.0,0.5134036]
[1748897748323,0.92202324,104820.0,104810.0,0.5134036]
[1748897748542,0.90415908,104820.0,104810.0,0.5134036]
[1748897748975,0.93156201,104820.0,104810.0,0.5134036]
[1748897749207,0.91369888,104820.0,104810.0,0.5134036]
[1748897749431,0.90415908,104820.0,104810.0,0.5134036]
[1748897749713,0.94048968,104820.0,104810.0,0.5134036]
[1748897749943,0.94109884,104820.0,104810.0,0.5134036]
[1748897750153,0.92262888,104820.0,104810.0,0.5134036]
[1748897750362,0.91369878,104820.0,104810.0,0.5134036]
[1748897750792,0.93156007,104820.0,104810.0,0.5134036]
[1748897751019,0.92323867,104820.0,104810.0,0.5134036]
[1748897751449,0.94110423,104820.0,104810.0,0.5134036]
[1748897751666,0.91369878,104820.0,104810.0,0.5134036]
[1748897751878,0.92323858,104820.0,104810.0,0.5134036]
[1748897752089,0.93217229,104820.0,104810.0,0.5134036]
[1748897752318,0.94110629,104820.0,104810.0,0.5134036]
[1748897752522,0.9411063,104820.0,104810.0,0.5134036]
[1748897752740,1.61102236,104820.0,104810.0,0.21190326]
[1748897752946,1.12297602,104820.0,104810.0,0.52294421]
[1748897753158,1.11404241,104820.0,104810.0,0.52294421]
[1748897753371,1.13191104,104820.0,104810.0,0.52294421]
[1748897753594,1.13191251,104820.0,104810.0,0.52294421]
[1748897753810,1.11404241,104820.0,104810.0,0.52294421]
[1748897754039,1.12297902,104820.0,104810.0,0.52294421]
[1748897754253,0.92323913,104820.0,104810.0,0.52294421]
[1748897754463,1.11404241,104820.0,104810.0,0.52294421]
[1748897754678,1.12297908,104820.0,104810.0,0.52294421]
[1748897754921,1.11404241,104820.0,104810.0,0.52294421]
[1748897755134,1.14085237,104820.0,104810.0,0.52294421]
[1748897755348,1.12297961,104820.0,104810.0,0.50386326]
[1748897755564,1.62889616,104820.0,104810.0,0.51340397]
[1748897755776,1.62889598,104820.0,104810.0,0.51340397]
[1748897755984,1.61935591,104820.0,104810.0,0.5229444]
[1748897756204,1.1045028,104820.0,104810.0,0.5229444]
[1748897756851,0.91369952,104820.0,104810.0,0.5229444]
[1748897757286,0.94051155,104820.0,104810.0,0.5229444]
[1748897757525,0.91369952,104820.0,104810.0,0.5229444]
[1748897757741,0.93157447,104820.0,104810.0,0.5229444]
[1748897757955,0.91369952,104820.0,104810.0,0.5229444]
[1748897758199,0.88259943,104820.0,104810.0,0.5229444]
[1748897758941,0.89153682,104820.0,104810.0,0.5229444]
[1748897759179,0.89153691,104820.0,104810.0,0.5229444]
[1748897759408,0.88259943,104820.0,104810.0,0.5229444]
[1748897759860,0.87245663,104820.0,104810.0,0.5229444]
[1748897760112,0.87245663,104820.0,104810.0,0.5394444]
[1748897760113,0.87305908,104820.0,104810.0,0.5394444]
[1748897760351,0.357,104820.0,104810.0,0.5544444]
[1748897760590,0.017,104820.0,104810.0,0.5544444]
[1748897760823,0.02593809,104820.0,104810.0,0.7398587]
[1748897761052,0.02593815,104820.0,104810.0,0.7398587]
[1748897761282,0.51397995,104820.0,104810.0,0.7398587]
[1748897761748,0.51397995,104820.0,104810.0,0.6352987]
[1748897762005,0.52291847,104820.0,104810.0,0.6507987]
[1748897762239,0.51397995,104820.0,104810.0,0.6507987]
[1748897762479,0.017,104820.0,104810.0,0.6507987]
[1748897762724,0.02593831,104820.0,104810.0,0.6507987]
[1748897762950,0.02593815,104820.0,104810.0,0.6507987]
[1748897763161,0.017,104820.0,104810.0,0.6507987]
[1748897763792,0.0259375,104820.0,104810.0,0.6507987]